[Event "Betsys MČR v online bleskovém šachu 2021"]
[Site "Chess.com"]
[Date "2021.04.17"]
[Round "10"]
[White "Patriktesko"]
[Black "ReitteN"]
[Result "1-0"]
[WhiteElo "2054"]
[BlackElo "1773"]
[TimeControl "180+1"]
[EndTime "10:41:31 PDT"]
[Termination "Uživatel Patriktesko zvítězil po vzdání soupeře"]

1. d4 {[%clk 0:03:00.9]} 1... Nf6 {[%clk 0:02:56.7]} 2. Nf3 {[%clk 0:03:00.6]}
2... d5 {[%clk 0:02:53.3]} 3. Bg5 {[%clk 0:03:00.5]} 3... Bf5 {[%clk 0:02:48.9]}
4. c3 {[%clk 0:02:59.8]} 4... e6 {[%clk 0:02:47.3]} 5. e3 {[%clk 0:02:59.8]}
5... h6 {[%clk 0:02:46.2]} 6. Bf4 {[%clk 0:02:59]} 6... Bd6 {[%clk 0:02:46]} 7.
Nbd2 {[%clk 0:02:57.7]} 7... a6 {[%clk 0:02:41.8]} 8. Be2 {[%clk 0:02:55.8]}
8... Bxf4 {[%clk 0:02:36.5]} 9. exf4 {[%clk 0:02:55]} 9... Nbd7 {[%clk
0:02:32.1]} 10. O-O {[%clk 0:02:53.9]} 10... O-O {[%clk 0:02:28.4]} 11. Ne5
{[%clk 0:02:53]} 11... Nxe5 {[%clk 0:02:24.3]} 12. fxe5 {[%clk 0:02:53]} 12...
Ne4 {[%clk 0:02:24.4]} 13. Nxe4 {[%clk 0:02:52.7]} 13... Bxe4 {[%clk 0:02:25.3]}
14. Bd3 {[%clk 0:02:52.7]} 14... Bxd3 {[%clk 0:02:23.3]} 15. Qxd3 {[%clk
0:02:53.6]} 15... c5 {[%clk 0:02:23.5]} 16. a3 {[%clk 0:02:50.5]} 16... Rc8
{[%clk 0:02:22.6]} 17. g3 {[%clk 0:02:48]} 17... Qb6 {[%clk 0:02:09.8]} 18. dxc5
{[%clk 0:02:38]} 18... Qxc5 {[%clk 0:02:01.7]} 19. Rae1 {[%clk 0:02:36.3]} 19...
Rfd8 {[%clk 0:01:52.5]} 20. Rd1 {[%clk 0:02:30.9]} 20... Qc4 {[%clk 0:01:47.1]}
21. Qxc4 {[%clk 0:02:26.3]} 21... Rxc4 {[%clk 0:01:48]} 22. f4 {[%clk
0:02:23.1]} 22... Rdc8 {[%clk 0:01:45.4]} 23. Kf2 {[%clk 0:02:20.3]} 23... Kf8
{[%clk 0:01:40.3]} 24. h4 {[%clk 0:02:17.5]} 24... Ke7 {[%clk 0:01:40.4]} 25.
Kf3 {[%clk 0:02:16.4]} 25... h5 {[%clk 0:01:39.2]} 26. Rf2 {[%clk 0:02:11.9]}
26... f5 {[%clk 0:01:20.6]} 27. exf6+ {[%clk 0:02:10]} 27... gxf6 {[%clk
0:01:20.8]} 28. Re2 {[%clk 0:02:08.6]} 28... R8c6 {[%clk 0:01:15.5]} 29. Rxd5
{[%clk 0:02:03.6]} 29... R4c5 {[%clk 0:01:11.5]} 30. Rxc5 {[%clk 0:01:59.3]}
30... Rxc5 {[%clk 0:01:12.4]} 31. Rd2 {[%clk 0:01:58.2]} 31... Rb5 {[%clk
0:01:07.9]} 32. b4 {[%clk 0:01:57.8]} 32... a5 {[%clk 0:01:07.1]} 33. Ke4 {[%clk
0:01:56]} 33... axb4 {[%clk 0:01:07]} 34. axb4 {[%clk 0:01:56]} 34... f5+ {[%clk
0:01:01.9]} 35. Ke3 {[%clk 0:01:54.5]} 35... e5 {[%clk 0:01:00.8]} 36. fxe5
{[%clk 0:01:52.9]} 36... Rxe5+ {[%clk 0:01:01.7]} 37. Kf4 {[%clk 0:01:52.6]}
37... Re4+ {[%clk 0:00:58]} 38. Kxf5 {[%clk 0:01:51.2]} 38... Re3 {[%clk
0:00:58.1]} 39. g4 {[%clk 0:01:38.4]} 39... hxg4 {[%clk 0:00:55]} 40. Kxg4
{[%clk 0:01:38.3]} 40... Rxc3 {[%clk 0:00:55.4]} 41. Rd4 {[%clk 0:01:37.3]}
41... Kf6 {[%clk 0:00:53.3]} 42. b5 {[%clk 0:01:19]} 42... Rc5 {[%clk
0:00:47.6]} 43. Rb4 {[%clk 0:01:17.9]} 43... b6 {[%clk 0:00:46.8]} 44. Rf4+
{[%clk 0:01:13.1]} 44... Kg7 {[%clk 0:00:44]} 45. Rf5 {[%clk 0:01:10]} 45...
Rc4+ {[%clk 0:00:41.4]} 46. Kg5 {[%clk 0:01:10.1]} 46... Rb4 {[%clk 0:00:38.9]}
47. Rd5 {[%clk 0:01:09.3]} 47... Rb1 {[%clk 0:00:35]} 48. Rd7+ {[%clk
0:01:05.9]} 48... Kg8 {[%clk 0:00:33.5]} 49. Kg6 {[%clk 0:01:03.7]} 49... Rg1+
{[%clk 0:00:33.2]} 50. Kh6 {[%clk 0:01:01.9]} 50... Rb1 {[%clk 0:00:30.6]} 51.
Rd5 {[%clk 0:01:00.1]} 51... Rb4 {[%clk 0:00:28.2]} 52. h5 {[%clk 0:00:58.9]}
52... Kf7 {[%clk 0:00:21.4]} 53. Kh7 {[%clk 0:00:52.7]} 53... Ke6 {[%clk
0:00:18.3]} 54. Rg5 {[%clk 0:00:51.5]} 54... Rf4 {[%clk 0:00:17.7]} 55. h6
{[%clk 0:00:47.9]} 55... Rf7+ {[%clk 0:00:11.6]} 56. Kg8 {[%clk 0:00:45.5]}
56... Ra7 {[%clk 0:00:11.7]} 57. Rg6+ {[%clk 0:00:43.3]} 57... Kf5 {[%clk
0:00:08.3]} 58. Rxb6 {[%clk 0:00:42.5]} 58... Ra8+ {[%clk 0:00:08.3]} 59. Kg7
{[%clk 0:00:42]} 59... Ra7+ {[%clk 0:00:08.7]} 60. Kf8 {[%clk 0:00:40]} 60...
Ra8+ {[%clk 0:00:09.1]} 61. Ke7 {[%clk 0:00:39.8]} 61... Ra7+ {[%clk 0:00:09.4]}
62. Kd6 {[%clk 0:00:35.4]} 62... Rh7 {[%clk 0:00:08.3]} 63. Kc5 {[%clk
0:00:35.3]} 63... Ke5 {[%clk 0:00:07.1]} 64. Rc6 {[%clk 0:00:33.2]} 64... Rb7
{[%clk 0:00:06.9]} 65. b6 {[%clk 0:00:32.2]} 1-0

[Event "Betsys MČR v online bleskovém šachu 2021"]
[Site "Chess.com"]
[Date "2021.04.17"]
[Round "10"]
[White "PavelNo"]
[Black "masodj"]
[Result "1/2-1/2"]
[WhiteElo "1954"]
[BlackElo "1730"]
[TimeControl "180+1"]
[EndTime "10:41:32 PDT"]
[Termination "Remíza opakováním pozice"]

1. e4 {[%clk 0:03:00.9]} 1... c5 {[%clk 0:02:58.4]} 2. Nf3 {[%clk 0:02:59.7]}
2... Nc6 {[%clk 0:02:58.1]} 3. Bb5 {[%clk 0:02:59]} 3... Nf6 {[%clk 0:02:54.5]}
4. Bxc6 {[%clk 0:02:49.2]} 4... bxc6 {[%clk 0:02:54]} 5. e5 {[%clk 0:02:48.4]}
5... Nd5 {[%clk 0:02:53.4]} 6. O-O {[%clk 0:02:47.7]} 6... g6 {[%clk 0:02:50.9]}
7. Re1 {[%clk 0:02:47.3]} 7... Bg7 {[%clk 0:02:50.8]} 8. b3 {[%clk 0:02:47.4]}
8... d6 {[%clk 0:02:47.8]} 9. Bb2 {[%clk 0:02:46.1]} 9... O-O {[%clk 0:02:43.6]}
10. d3 {[%clk 0:02:40.3]} 10... Qc7 {[%clk 0:02:38.8]} 11. exd6 {[%clk
0:02:36.3]} 11... exd6 {[%clk 0:02:38.7]} 12. Bxg7 {[%clk 0:02:36.6]} 12... Kxg7
{[%clk 0:02:38.5]} 13. Qd2 {[%clk 0:02:31]} 13... Bg4 {[%clk 0:02:32.6]} 14. Ng5
{[%clk 0:02:23.5]} 14... Rfe8 {[%clk 0:02:23.2]} 15. Nc3 {[%clk 0:02:19.8]}
15... Kg8 {[%clk 0:02:07.7]} 16. h3 {[%clk 0:02:17.9]} 16... Bf5 {[%clk
0:02:05.5]} 17. Nge4 {[%clk 0:02:09.9]} 17... Nxc3 {[%clk 0:02:00.9]} 18. Nxc3
{[%clk 0:02:09.8]} 18... d5 {[%clk 0:01:59.6]} 19. Rxe8+ {[%clk 0:01:58.4]}
19... Rxe8 {[%clk 0:01:57.8]} 20. Re1 {[%clk 0:01:58.9]} 20... Re5 {[%clk
0:01:44.2]} 21. Na4 {[%clk 0:01:38.1]} 21... Qe7 {[%clk 0:01:10.5]} 22. Rxe5
{[%clk 0:01:35.6]} 22... Qxe5 {[%clk 0:01:08.9]} 23. Nxc5 {[%clk 0:01:34.5]}
23... Qa1+ {[%clk 0:01:05.6]} 24. Kh2 {[%clk 0:01:34.5]} 24... Qxa2 {[%clk
0:00:56.1]} 25. b4 {[%clk 0:01:22.5]} 25... Qb2 {[%clk 0:00:51.2]} 26. g3 {[%clk
0:01:14.9]} 26... h5 {[%clk 0:00:48.9]} 27. Nb3 {[%clk 0:01:04.8]} 27... h4
{[%clk 0:00:45.6]} 28. Na5 {[%clk 0:01:02.4]} 28... hxg3+ {[%clk 0:00:42.2]} 29.
fxg3 {[%clk 0:01:01.3]} 29... Bd7 {[%clk 0:00:37.3]} 30. Nb3 {[%clk 0:00:56.9]}
30... Qe5 {[%clk 0:00:33.5]} 31. Nc5 {[%clk 0:00:52.6]} 31... Bf5 {[%clk
0:00:29.4]} 32. d4 {[%clk 0:00:37.9]} 32... Qe8 {[%clk 0:00:25.3]} 33. c3 {[%clk
0:00:36.9]} 33... Kg7 {[%clk 0:00:25]} 34. g4 {[%clk 0:00:33.3]} 34... Be4
{[%clk 0:00:22.6]} 35. Qe3 {[%clk 0:00:31.2]} 35... Qb8+ {[%clk 0:00:21]} 36.
Kg1 {[%clk 0:00:28.6]} 36... Qh8 {[%clk 0:00:16.8]} 37. Nxe4 {[%clk 0:00:23.6]}
37... dxe4 {[%clk 0:00:16.1]} 38. Kg2 {[%clk 0:00:18.8]} 38... Qe8 {[%clk
0:00:15.2]} 39. Kg3 {[%clk 0:00:17.8]} 39... f5 {[%clk 0:00:13.6]} 40. gxf5
{[%clk 0:00:17.2]} 40... gxf5 {[%clk 0:00:13.7]} 41. Qg5+ {[%clk 0:00:16.8]}
41... Kh8 {[%clk 0:00:11]} 42. Qxf5 {[%clk 0:00:14.2]} 42... e3 {[%clk
0:00:10.5]} 43. Qf1 {[%clk 0:00:13.8]} 43... e2 {[%clk 0:00:09.8]} 44. Qe1
{[%clk 0:00:14]} 44... Qe3+ {[%clk 0:00:08.6]} 45. Kg2 {[%clk 0:00:13.7]} 45...
Kg7 {[%clk 0:00:01.9]} 46. h4 {[%clk 0:00:08.5]} 46... Kh6 {[%clk 0:00:02.2]}
47. Kh2 {[%clk 0:00:06.4]} 47... Kh5 {[%clk 0:00:02.5]} 48. Kg2 {[%clk
0:00:06.4]} 48... Kh6 {[%clk 0:00:02.9]} 49. Kh2 {[%clk 0:00:04.6]} 49... Kh5
{[%clk 0:00:03.3]} 50. Kg2 {[%clk 0:00:04.6]} 50... Kh6 {[%clk 0:00:03.7]}
1/2-1/2

[Event "Betsys MČR v online bleskovém šachu 2021"]
[Site "Chess.com"]
[Date "2021.04.17"]
[Round "10"]
[White "Asmodai5"]
[Black "TTCZ"]
[Result "1/2-1/2"]
[WhiteElo "1266"]
[BlackElo "1451"]
[TimeControl "180+1"]
[EndTime "10:41:32 PDT"]
[Termination "Remíza opakováním pozice"]

1. e4 {[%clk 0:03:00.1]} 1... e6 {[%clk 0:00:21.6]} 2. Nf3 {[%clk 0:02:59.4]}
2... d5 {[%clk 0:00:21.5]} 3. exd5 {[%clk 0:02:58.7]} 3... exd5 {[%clk
0:00:22.4]} 4. Nc3 {[%clk 0:02:57.9]} 4... Nf6 {[%clk 0:00:23.3]} 5. d3 {[%clk
0:02:57.2]} 5... Be7 {[%clk 0:00:23.6]} 6. Bg5 {[%clk 0:02:56.7]} 6... O-O
{[%clk 0:00:23.8]} 7. Bxf6 {[%clk 0:02:56.7]} 7... Bxf6 {[%clk 0:00:24.6]} 8.
Be2 {[%clk 0:02:56.9]} 8... Re8 {[%clk 0:00:25.2]} 9. O-O {[%clk 0:02:56.5]}
9... c6 {[%clk 0:00:25.6]} 10. d4 {[%clk 0:02:52.2]} 10... Bg4 {[%clk
0:00:25.9]} 11. Qd3 {[%clk 0:02:47.1]} 11... Nd7 {[%clk 0:00:24.9]} 12. b3
{[%clk 0:02:26.4]} 12... Qb6 {[%clk 0:00:23.5]} 13. h3 {[%clk 0:02:12.8]} 13...
Bxf3 {[%clk 0:00:23.1]} 14. Bxf3 {[%clk 0:02:12]} 14... Qxd4 {[%clk 0:00:22.1]}
15. Qxd4 {[%clk 0:02:11.3]} 15... Bxd4 {[%clk 0:00:23]} 16. Ne2 {[%clk
0:02:10.3]} 16... Bxa1 {[%clk 0:00:22.6]} 17. Rxa1 {[%clk 0:02:09.3]} 17... Nf6
{[%clk 0:00:22.3]} 18. Ng3 {[%clk 0:02:07.5]} 18... Ne4 {[%clk 0:00:21.7]} 19.
Bxe4 {[%clk 0:02:06.9]} 19... dxe4 {[%clk 0:00:22.6]} 20. Re1 {[%clk 0:02:02.7]}
20... Rad8 {[%clk 0:00:20.7]} 21. Kh2 {[%clk 0:01:34.3]} 21... Rd2 {[%clk
0:00:20]} 22. Kg1 {[%clk 0:01:24.4]} 22... Rxc2 {[%clk 0:00:18.7]} 23. a4 {[%clk
0:01:23.6]} 23... g6 {[%clk 0:00:18]} 24. b4 {[%clk 0:01:14.7]} 24... f5 {[%clk
0:00:17.2]} 25. a5 {[%clk 0:01:14.4]} 25... Rc4 {[%clk 0:00:17]} 26. h4 {[%clk
0:01:08.7]} 26... h6 {[%clk 0:00:16.3]} 27. Rd1 {[%clk 0:01:02.5]} 27... Rxb4
{[%clk 0:00:15.6]} 28. Rd6 {[%clk 0:00:57.4]} 28... Rb1+ {[%clk 0:00:15.2]} 29.
Kh2 {[%clk 0:00:57.1]} 29... Kf7 {[%clk 0:00:14.2]} 30. h5 {[%clk 0:00:55.6]}
30... gxh5 {[%clk 0:00:11.3]} 31. Nxh5 {[%clk 0:00:55.1]} 31... Rb5 {[%clk
0:00:10.8]} 32. Rf6+ {[%clk 0:00:52.9]} 32... Ke7 {[%clk 0:00:10.3]} 33. Rxh6
{[%clk 0:00:52.4]} 33... Rxa5 {[%clk 0:00:10.3]} 34. Rh7+ {[%clk 0:00:52]} 34...
Kd6 {[%clk 0:00:10.3]} 35. Rh6+ {[%clk 0:00:51.9]} 35... Kc5 {[%clk 0:00:10]}
36. Nf6 {[%clk 0:00:51.4]} 36... Kd4 {[%clk 0:00:09.4]} 37. Nxe8 {[%clk
0:00:51]} 37... b5 {[%clk 0:00:09.7]} 38. Rd6+ {[%clk 0:00:49.3]} 38... Kc5
{[%clk 0:00:08.3]} 39. Rf6 {[%clk 0:00:48.2]} 39... b4 {[%clk 0:00:08.1]} 40.
Nd6 {[%clk 0:00:44.8]} 40... b3 {[%clk 0:00:06.9]} 41. Rxf5+ {[%clk 0:00:44.7]}
41... Kb6 {[%clk 0:00:05.8]} 42. Rxa5 {[%clk 0:00:43.6]} 42... Kxa5 {[%clk
0:00:06.7]} 43. Nxe4 {[%clk 0:00:43.5]} 43... b2 {[%clk 0:00:06.7]} 44. Nd2
{[%clk 0:00:41.1]} 44... Kb4 {[%clk 0:00:06.3]} 45. g4 {[%clk 0:00:40.8]} 45...
Kc3 {[%clk 0:00:06.3]} 46. Nb1+ {[%clk 0:00:36.7]} 46... Kc2 {[%clk 0:00:06.1]}
47. Na3+ {[%clk 0:00:36.3]} 47... Kb3 {[%clk 0:00:05.9]} 48. Nb1 {[%clk
0:00:36.4]} 48... c5 {[%clk 0:00:05.8]} 49. g5 {[%clk 0:00:35.8]} 49... Ka2
{[%clk 0:00:06.3]} 50. Nd2 {[%clk 0:00:34.8]} 50... b1=Q {[%clk 0:00:05.9]} 51.
Nxb1 {[%clk 0:00:34.5]} 51... Kxb1 {[%clk 0:00:06.8]} 52. g6 {[%clk 0:00:34.5]}
52... c4 {[%clk 0:00:07.7]} 53. g7 {[%clk 0:00:34.8]} 53... c3 {[%clk
0:00:08.6]} 54. g8=Q {[%clk 0:00:34.5]} 54... c2 {[%clk 0:00:09.5]} 55. Qb8+
{[%clk 0:00:34.2]} 55... Kc1 {[%clk 0:00:08.2]} 56. Qc8 {[%clk 0:00:32.5]} 56...
Kd1 {[%clk 0:00:04.6]} 57. Qd8+ {[%clk 0:00:31.7]} 57... Kc1 {[%clk 0:00:04]}
58. Qc8 {[%clk 0:00:31.3]} 58... Kd1 {[%clk 0:00:03.9]} 59. Qd8+ {[%clk
0:00:29.2]} 59... Kc1 {[%clk 0:00:04.1]} 60. Qc8 {[%clk 0:00:27.4]} 1/2-1/2

[Event "Betsys MČR v online bleskovém šachu 2021"]
[Site "Chess.com"]
[Date "2021.04.17"]
[Round "10"]
[White "KdybyNecoTakNic"]
[Black "Diamantidis_13"]
[Result "0-1"]
[WhiteElo "2306"]
[BlackElo "2451"]
[TimeControl "180+1"]
[EndTime "10:41:34 PDT"]
[Termination "Uživatel Diamantidis_13 zvítězil na čas"]

1. Nf3 {[%clk 0:03:00.9]} 1... Nf6 {[%clk 0:02:59.3]} 2. g3 {[%clk 0:03:01.6]}
2... b5 {[%clk 0:02:56]} 3. Bg2 {[%clk 0:03:02.1]} 3... Bb7 {[%clk 0:02:56.5]}
4. O-O {[%clk 0:03:02.6]} 4... e6 {[%clk 0:02:56.9]} 5. d3 {[%clk 0:03:03.1]}
5... c5 {[%clk 0:02:56.7]} 6. e4 {[%clk 0:03:01]} 6... d6 {[%clk 0:02:57.1]} 7.
Nbd2 {[%clk 0:02:52.4]} 7... Nbd7 {[%clk 0:02:56.7]} 8. Qe2 {[%clk 0:02:50.3]}
8... Be7 {[%clk 0:02:55.9]} 9. b3 {[%clk 0:02:48.1]} 9... O-O {[%clk 0:02:54.5]}
10. Bb2 {[%clk 0:02:48.2]} 10... Qc7 {[%clk 0:02:47.6]} 11. Rfe1 {[%clk
0:02:41.2]} 11... Ne5 {[%clk 0:02:44.2]} 12. Nxe5 {[%clk 0:02:25.2]} 12... dxe5
{[%clk 0:02:45.1]} 13. Rf1 {[%clk 0:02:10.5]} 13... Bd6 {[%clk 0:02:17.9]} 14.
h3 {[%clk 0:01:54.1]} 14... Nd7 {[%clk 0:02:17.4]} 15. Qh5 {[%clk 0:01:45.4]}
15... Qa5 {[%clk 0:02:02.3]} 16. Qe2 {[%clk 0:01:41]} 16... Rae8 {[%clk
0:01:57.5]} 17. f4 {[%clk 0:01:40.5]} 17... exf4 {[%clk 0:01:48.4]} 18. gxf4
{[%clk 0:01:40.5]} 18... f5 {[%clk 0:01:43.5]} 19. a4 {[%clk 0:01:35.8]} 19...
b4 {[%clk 0:01:31.1]} 20. Nc4 {[%clk 0:01:33.6]} 20... Qc7 {[%clk 0:01:28.5]}
21. e5 {[%clk 0:01:22.5]} 21... Be7 {[%clk 0:01:25.1]} 22. Kh1 {[%clk
0:01:20.6]} 22... Nb6 {[%clk 0:01:14.8]} 23. Nxb6 {[%clk 0:01:11.6]} 23... axb6
{[%clk 0:01:12.4]} 24. Rg1 {[%clk 0:01:09.1]} 24... Rf7 {[%clk 0:01:06.7]} 25.
Rad1 {[%clk 0:01:05.1]} 25... Rd8 {[%clk 0:00:58.1]} 26. Kh2 {[%clk 0:01:04.7]}
26... Bf8 {[%clk 0:00:54.8]} 27. Bf3 {[%clk 0:01:04.2]} 27... Bxf3 {[%clk
0:00:52.3]} 28. Qxf3 {[%clk 0:01:04.1]} 28... Qb7 {[%clk 0:00:48.9]} 29. Qxb7
{[%clk 0:00:52.5]} 29... Rxb7 {[%clk 0:00:49.8]} 30. Ra1 {[%clk 0:00:49.9]}
30... Ra7 {[%clk 0:00:47.5]} 31. Kg3 {[%clk 0:00:47.6]} 31... g6 {[%clk
0:00:47.8]} 32. Kf3 {[%clk 0:00:47.8]} 32... Kf7 {[%clk 0:00:48.1]} 33. h4
{[%clk 0:00:42.9]} 33... h5 {[%clk 0:00:47.4]} 34. Rgb1 {[%clk 0:00:34.2]} 34...
Be7 {[%clk 0:00:47.4]} 35. Kg3 {[%clk 0:00:34.3]} 35... Rda8 {[%clk 0:00:44.4]}
36. d4 {[%clk 0:00:26.7]} 36... Rd8 {[%clk 0:00:37.6]} 37. dxc5 {[%clk
0:00:21.5]} 37... Bxc5 {[%clk 0:00:38.5]} 38. Rd1 {[%clk 0:00:19.8]} 38... Rad7
{[%clk 0:00:32.5]} 39. Rxd7+ {[%clk 0:00:19.2]} 39... Rxd7 {[%clk 0:00:33.4]}
40. a5 {[%clk 0:00:19.5]} 40... bxa5 {[%clk 0:00:25.5]} 41. Rxa5 {[%clk
0:00:19]} 41... Rc7 {[%clk 0:00:20.3]} 42. c3 {[%clk 0:00:14.7]} 42... bxc3
{[%clk 0:00:14.8]} 43. Bc1 {[%clk 0:00:10.5]} 43... c2 {[%clk 0:00:13.9]} 44.
Kf3 {[%clk 0:00:10.4]} 44... Be7 {[%clk 0:00:13.9]} 45. Ke2 {[%clk 0:00:09.9]}
45... Bxh4 {[%clk 0:00:13.4]} 46. Kd3 {[%clk 0:00:09.5]} 46... Be7 {[%clk
0:00:13.2]} 47. Ra6 {[%clk 0:00:09.3]} 47... h4 {[%clk 0:00:13.3]} 48. Ra8
{[%clk 0:00:08.7]} 48... Kg7 {[%clk 0:00:12.6]} 49. Ke2 {[%clk 0:00:07.2]} 49...
h3 {[%clk 0:00:12.2]} 50. Kf2 {[%clk 0:00:07.6]} 50... Rd7 {[%clk 0:00:09.6]}
51. Kg3 {[%clk 0:00:06.1]} 51... Rd1 {[%clk 0:00:09.7]} 52. Be3 {[%clk
0:00:04.2]} 52... Rd3 {[%clk 0:00:09.9]} 53. Ra7 {[%clk 0:00:01.5]} 53... Rxe3+
{[%clk 0:00:09.8]} 54. Kf2 {[%clk 0:00:01.6]} 54... c1=Q {[%clk 0:00:10.4]} 0-1

[Event "Betsys MČR v online bleskovém šachu 2021"]
[Site "Chess.com"]
[Date "2021.04.17"]
[Round "10"]
[White "avsokol"]
[Black "jachymcarostrelec4"]
[Result "1-0"]
[WhiteElo "2347"]
[BlackElo "1966"]
[TimeControl "180+1"]
[EndTime "10:41:34 PDT"]
[Termination "Uživatel avsokol zvítězil na čas"]

1. e4 {[%clk 0:02:57.5]} 1... c5 {[%clk 0:02:58.5]} 2. Nf3 {[%clk 0:02:57.4]}
2... e6 {[%clk 0:02:58.1]} 3. d4 {[%clk 0:02:57.8]} 3... cxd4 {[%clk 0:02:58.8]}
4. Nxd4 {[%clk 0:02:57.8]} 4... Qb6 {[%clk 0:02:59.3]} 5. Nb3 {[%clk 0:02:55.3]}
5... a6 {[%clk 0:02:58.4]} 6. Nc3 {[%clk 0:02:53]} 6... Qc7 {[%clk 0:02:58.3]}
7. a4 {[%clk 0:02:51.7]} 7... Nf6 {[%clk 0:02:57.1]} 8. Bd3 {[%clk 0:02:49.4]}
8... b6 {[%clk 0:02:51.3]} 9. O-O {[%clk 0:02:47.9]} 9... Bb7 {[%clk 0:02:51.6]}
10. Qe2 {[%clk 0:02:47.5]} 10... d6 {[%clk 0:02:47.3]} 11. Be3 {[%clk
0:02:33.7]} 11... Nbd7 {[%clk 0:02:46.4]} 12. f4 {[%clk 0:02:30.9]} 12... Be7
{[%clk 0:02:45.8]} 13. f5 {[%clk 0:02:20.3]} 13... e5 {[%clk 0:02:42.4]} 14. Bg5
{[%clk 0:02:19.5]} 14... Nc5 {[%clk 0:02:34.7]} 15. Nxc5 {[%clk 0:02:15.9]}
15... dxc5 {[%clk 0:02:32.9]} 16. Bc4 {[%clk 0:02:13.7]} 16... h6 {[%clk
0:02:17.5]} 17. Bxf6 {[%clk 0:02:12.7]} 17... Bxf6 {[%clk 0:02:18.4]} 18. Bd5
{[%clk 0:02:12.8]} 18... Rd8 {[%clk 0:01:50.6]} 19. Bxb7 {[%clk 0:02:11.5]}
19... Qxb7 {[%clk 0:01:51.5]} 20. Nd5 {[%clk 0:02:10.3]} 20... Bg5 {[%clk
0:01:49.7]} 21. Rad1 {[%clk 0:02:06.7]} 21... O-O {[%clk 0:01:46.5]} 22. Rd3
{[%clk 0:01:57.8]} 22... c4 {[%clk 0:01:37.4]} 23. Rg3 {[%clk 0:01:55.7]} 23...
f6 {[%clk 0:01:25.5]} 24. Qxc4 {[%clk 0:01:52.4]} 24... Kh7 {[%clk 0:01:21.6]}
25. Qb3 {[%clk 0:01:48.1]} 25... b5 {[%clk 0:01:14.2]} 26. Rd3 {[%clk
0:01:43.2]} 26... Qa7+ {[%clk 0:01:07.7]} 27. Kh1 {[%clk 0:01:43.2]} 27... Rc8
{[%clk 0:01:01.8]} 28. axb5 {[%clk 0:01:38.1]} 28... axb5 {[%clk 0:01:01.3]} 29.
c3 {[%clk 0:01:37.4]} 29... Rc4 {[%clk 0:00:58.7]} 30. Re1 {[%clk 0:01:29.5]}
30... Qc5 {[%clk 0:00:38.8]} 31. Rf3 {[%clk 0:01:23.6]} 31... Ra8 {[%clk
0:00:32]} 32. g3 {[%clk 0:01:23.2]} 32... Raa4 {[%clk 0:00:24.4]} 33. Qc2 {[%clk
0:01:17.4]} 33... Rxe4 {[%clk 0:00:19.8]} 34. Rxe4 {[%clk 0:01:03.8]} 34... Qxd5
{[%clk 0:00:19.5]} 35. h4 {[%clk 0:00:43.1]} 35... Rxe4 {[%clk 0:00:14.8]} 36.
hxg5 {[%clk 0:00:43.1]} 36... hxg5 {[%clk 0:00:12.9]} 37. Kh2 {[%clk 0:00:37.9]}
37... g4 {[%clk 0:00:11.8]} 38. Rd3 {[%clk 0:00:37]} 38... Qc4 {[%clk 0:00:10]}
39. b3 {[%clk 0:00:35]} 39... Qc5 {[%clk 0:00:09.2]} 40. Kg2 {[%clk 0:00:30.7]}
40... b4 {[%clk 0:00:09.1]} 41. c4 {[%clk 0:00:29.1]} 41... Rd4 {[%clk
0:00:09.2]} 42. Rxd4 {[%clk 0:00:27.8]} 42... Qxd4 {[%clk 0:00:10.1]} 43. c5
{[%clk 0:00:28.1]} 43... Qd5+ {[%clk 0:00:09.4]} 44. Kg1 {[%clk 0:00:26.8]}
44... Qc6 {[%clk 0:00:07.6]} 45. Qc4 {[%clk 0:00:25]} 45... e4 {[%clk
0:00:07.8]} 46. Kf2 {[%clk 0:00:24.8]} 46... Kh6 {[%clk 0:00:06.2]} 47. Ke3
{[%clk 0:00:25]} 47... Kg5 {[%clk 0:00:05.9]} 48. Kd4 {[%clk 0:00:22]} 48...
Qd7+ {[%clk 0:00:04.3]} 49. Ke3 {[%clk 0:00:18.8]} 49... Qc6 {[%clk 0:00:01.9]}
50. Qxb4 {[%clk 0:00:17.3]} 50... Kxf5 {[%clk 0:00:01.4]} 51. Qc4 {[%clk
0:00:17.1]} 1-0